[Event "34rd NATO Championship 2024"]
[Site "Rhodes"]
[Date "2024.10.21"]
[Round "1.38"]
[White "Hater, Andrew"]
[Black "Kedzierski, Slawomir"]
[Result "0-1"]
[ECO "B08"]
[WhiteElo "1767"]
[BlackElo "2013"]
[Annotator "RC"]
[PlyCount "104"]
[EventDate "2024.09.18"]
[EventType "swiss"]
[EventCountry "GRE"]
[SourceTitle "playchess.com"]
[Source "ChessBase"]
[SourceQuality "1"]
[TimeControl "5400+30"]

1. e4 {[%emt 0:00:03]} d6 {[%emt 0:00:10]} 2. d4 {[%emt 0:00:15]} c6 {[%emt 0:00:08]} 3. Nf3 {[%emt 0:00:20]} g6 {[%emt 0:00:08]} 4. Nc3 {[%emt 0:00:38]} Bg7 {[%emt 0:00:06]} 5. h3 {[%emt 0:01:10]} Nf6 {[%emt 0:00:23]} 6. Bd3 {[%emt 0:01:16]} O-O {[%emt 0:00:12]} 7. O-O {[%emt 0:00:19]} Qc7 {[%emt 0:00:44]} 8. Bf4 {[%emt 0:01:49]} Nbd7 {[%emt 0:01:31]} 9. e5 {[%emt 0:07:14]} dxe5 {[%emt 0:00:43]} 10. Nxe5 {[%emt 0:03:08]} Nxe5 {[%emt 0:00:22]} 11. Bxe5 {[%emt 0:01:13]} Qb6 {[%emt 0:01:41]} 12. Na4 {[%emt 0:03:59]} Qd8 {[%emt 0:00:49]} 13. Nc5 {[%emt 0:04:19]} b6 {[%emt 0:00:33]} 14. Ne4 {[%emt 0:05:10]} Bb7 {[%emt 0:00:37]} 15. Re1 {[%emt 0:02:40]} Qd7 {[%emt 0:04:11]} 16. c3 {[%emt 0:01:57]} Rfd8 {[%emt 0:01:35]} 17. Qa4 {[%emt 0:11:39]} Nxe4 {[%emt 0:06:38]} 18. Bxe4 {[%emt 0:00:44]} Bxe5 {[%emt 0:05:28]} 19. dxe5 {[%emt 0:00:04]} Qc7 {[%emt 0:00:39]} 20. Rad1 {[%emt 0:09:12]} a5 {[%emt 0:04:03]} 21. Bf3 {[%emt 0:17:14]} c5 {[%emt 0:06:12]} 22. Bxb7 {[%emt 0:04:30]} Qxb7 {[%emt 0:00:07]} 23. e6 {[%emt 0:04:28]} fxe6 {[%emt 0:17:22]} 24. Qc4 {[%emt 0:04:10]} Rd5 {[%emt 0:04:36]} 25. Qe4 {[%emt 0:00:48]} Qd7 {[%emt 0:00:48]} 26. Rxd5 {[%emt 0:02:05]} exd5 {[%emt 0:01:09]} 27. Qxe7 {[%emt 0:01:08]} Qxe7 {[%emt 0:00:47]} 28. Rxe7 {[%emt 0:00:02]} Rd8 {[%emt 0:00:13]} 29. Kf1 {[%emt 0:01:30]} d4 {[%emt 0:00:10]} 30. cxd4 {[%emt 0:03:33]} Rxd4 {[%emt 0:00:28]} 31. Ke2 {[%emt 0:00:47]} Rb4 {[%emt 0:00:12]} 32. b3 {[%emt 0:00:37]} a4 {[%emt 0:00:14]} 33. Re3 {[%emt 0:01:04]} Kf7 {[%emt 0:00:37]} 34. Kd2 {[%emt 0:00:09]} Kf6 {[%emt 0:02:54]} 35. g3 {[%emt 0:03:58]} g5 {[%emt 0:02:15]} 36. g4 {[%emt 0:00:38]} Rd4+ {[%emt 0:05:05]} 37. Kc3 {[%emt 0:00:39]} b5 {[%emt 0:02:20]} 38. Rf3+ {[%emt 0:01:53]} Ke6 {[%emt 0:01:41]} 39. Rf5 {[%emt 0:00:08]} axb3 {[%emt 0:03:58]} 40. axb3 {[%emt 0:00:38]} Rd5 {[%emt 0:00:18]} 41. Rf3 {[%emt 0:01:46]} Re5 {[%emt 0:10:27]} 42. Re3 {[%emt 0:01:05]} Rxe3+ {[%emt 0:02:00]} 43. fxe3 {[%emt 0:00:01]} Kd5 {[%emt 0:01:16]} 44. Kd3 {[%emt 0:00:34]} Ke5 {[%emt 0:00:11]} 45. Ke2 {[%emt 0:01:13]} Ke4 {[%emt 0:01:00]} 46. Kd2 {[%emt 0:00:06]} c4 {[%emt 0:01:30]} 47. bxc4 {[%emt 0:00:38]} bxc4 {[%emt 0:00:06]} 48. Kc3 {[%emt 0:00:03]} Kxe3 {[%emt 0:00:16]} 49. Kxc4 {[%emt 0:00:02]} Kf3 {[%emt 0:00:08]} 50. Kd5 {[%emt 0:00:03]} Kg3 {[%emt 0:00:30]} 51. Ke5 {[%emt 0:00:07]} Kxh3 {[%emt 0:00:25]} 52. Kf5 {[%emt 0:00:02]} Kh4 {[%emt 0:00:17]} 0-1

[Event "34rd NATO Championship 2024"]
[Site "Rhodes"]
[Date "2024.10.21"]
[Round "1.39"]
[White "Van Drie, Rik"]
[Black "Windey, Luc"]
[Result "1-0"]
[ECO "A39"]
[WhiteElo "2013"]
[BlackElo "1763"]
[Annotator "RC"]
[PlyCount "63"]
[EventDate "2024.09.18"]
[EventType "swiss"]
[EventCountry "GRE"]
[SourceTitle "playchess.com"]
[Source "ChessBase"]
[SourceQuality "1"]
[TimeControl "5400+30"]

1. c4 {[%emt 0:00:17]} c5 {[%emt 0:00:57]} 2. Nc3 {[%emt 0:00:24]} Nc6 {[%emt 0:00:19]} 3. Nf3 {[%emt 0:00:22]} Nf6 {[%emt 0:00:11]} 4. g3 {[%emt 0:00:13]} g6 {[%emt 0:01:34]} 5. Bg2 {[%emt 0:00:20]} Bg7 {[%emt 0:00:06]} 6. d4 {[%emt 0:00:23]} cxd4 {[%emt 0:00:31]} 7. Nxd4 {[%emt 0:00:08]} O-O {[%emt 0:00:12]} 8. O-O {[%emt 0:00:17]} Qb6 {[%emt 0:01:56]} 9. Nb3 {[%emt 0:03:07]} d6 {[%emt 0:02:56]} 10. Be3 {[%emt 0:05:02]} Qb4 {[%emt 0:04:45]} 11. c5 {[%emt 0:01:32]} Ng4 {[%emt 0:09:55]} 12. Bd2 {[%emt 0:01:53]} Be6 {[%emt 0:11:00]} 13. Nd5 {[%emt 0:07:18]} Qa4 {[%emt 0:02:23]} 14. cxd6 {[%emt 0:02:04]} exd6 {[%emt 0:00:50]} 15. h3 {[%emt 0:07:46]} Nf6 {[%emt 0:01:04]} 16. Nc3 {[%emt 0:02:51]} Qa6 {[%emt 0:05:51]} 17. Bf4 {[%emt 0:03:03]} Ne5 {[%emt 0:00:52]} 18. Nd4 {[%emt 0:02:07]} Rad8 {[%emt 0:15:07]} 19. Nxe6 {[%emt 0:01:42]} fxe6 {[%emt 0:00:30]} 20. Qb3 {[%emt 0:00:19]} Rfe8 {[%emt 0:07:46]} 21. Bxb7 {[%emt 0:01:00]} Qb6 {[%emt 0:00:17]} 22. Qxb6 {[%emt 0:01:04]} axb6 {[%emt 0:00:08]} 23. Rac1 {[%emt 0:01:23]} Nc4 {[%emt 0:01:58]} 24. b3 {[%emt 0:01:04]} Na5 {[%emt 0:00:42]} 25. Bg2 {[%emt 0:01:17]} d5 {[%emt 0:02:39]} 26. Bc7 {[%emt 0:02:29]} Rc8 {[%emt 0:02:36]} 27. Bxb6 {[%emt 0:00:47]} Nxb3 {[%emt 0:00:10]} 28. axb3 {[%emt 0:00:28]} Nd7 {[%emt 0:00:06]} 29. Nxd5 {[%emt 0:03:09]} exd5 {[%emt 0:01:15]} 30. Bxd5+ {[%emt 0:00:04]} Kh8 {[%emt 0:00:10]} 31. Rxc8 {[%emt 0:02:00]} Rxc8 {[%emt 0:00:10]} 32. Be3 {[%emt 0:00:12]} 1-0

[Event "34rd NATO Championship 2024"]
[Site "Rhodes"]
[Date "2024.10.21"]
[Round "1.40"]
[White "O`Byrne, Daniel"]
[Black "Michalski, Daniel"]
[Result "0-1"]
[ECO "C01"]
[WhiteElo "1748"]
[BlackElo "2011"]
[Annotator "RC"]
[PlyCount "100"]
[EventDate "2024.09.18"]
[EventType "swiss"]
[EventCountry "GRE"]
[SourceTitle "playchess.com"]
[Source "ChessBase"]
[SourceQuality "1"]
[TimeControl "5400+30"]

1. e4 {[%emt 0:00:04]} e6 {[%emt 0:00:08]} 2. d4 {[%emt 0:00:13]} d5 {[%emt 0:00:05]} 3. exd5 {[%emt 0:00:32]} exd5 {[%emt 0:00:06]} 4. Bd3 {[%emt 0:00:13]} Nc6 {[%emt 0:00:27]} 5. c3 {[%emt 0:00:45]} Bd6 {[%emt 0:00:08]} 6. Nf3 {[%emt 0:00:28]} Nge7 {[%emt 0:00:17]} 7. O-O {[%emt 0:00:59]} Bg4 {[%emt 0:00:20]} 8. h3 {[%emt 0:00:27]} Bh5 {[%emt 0:01:22]} 9. Be3 {[%emt 0:01:55]} Qd7 {[%emt 0:01:35]} 10. b4 {[%emt 0:00:28]} f6 {[%emt 0:06:53]} 11. b5 {[%emt 0:03:07]} Na5 {[%emt 0:00:27]} 12. Nbd2 {[%emt 0:02:21]} Bg6 {[%emt 0:04:59]} 13. Be2 {[%emt 0:00:28]} Bf7 {[%emt 0:09:39]} 14. Re1 {[%emt 0:04:50]} O-O {[%emt 0:01:44]} 15. Bd3 {[%emt 0:03:10]} Nc4 {[%emt 0:06:56]} 16. a4 {[%emt 0:04:29]} Nb2 {[%emt 0:01:03]} 17. Bxh7+ {[%emt 0:01:05]} Kxh7 {[%emt 0:02:52]} 18. Qc2+ {[%emt 0:00:14]} f5 {[%emt 0:00:22]} 19. Qxb2 {[%emt 0:04:32]} f4 {[%emt 0:00:20]} 20. Nf1 {[%emt 0:01:46]} fxe3 {[%emt 0:00:15]} 21. Nxe3 {[%emt 0:00:30]} Kg8 {[%emt 0:08:17]} 22. Ng4 {[%emt 0:03:41]} Rae8 {[%emt 0:09:07]} 23. Qd2 {[%emt 0:00:30]} Qf5 {[%emt 0:01:34]} 24. Nge5 {[%emt 0:06:55]} Ng6 {[%emt 0:03:40]} 25. g4 {[%emt 0:02:32]} Nxe5 {[%emt 0:02:18]} 26. Nxe5 {[%emt 0:01:00]} Qh7 {[%emt 0:02:57]} 27. Kg2 {[%emt 0:02:43]} Bg6 {[%emt 0:01:46]} 28. f3 {[%emt 0:06:23]} Re6 {[%emt 0:11:55]} 29. Qg5 {[%emt 0:06:21]} Qh6 {[%emt 0:02:03]} 30. Qxh6 {[%emt 0:00:31]} gxh6 {[%emt 0:00:13]} 31. Kg3 {[%emt 0:01:04]} Kg7 {[%emt 0:01:11]} 32. f4 {[%emt 0:00:17]} Be4 {[%emt 0:00:14]} 33. c4 {[%emt 0:00:41]} c6 {[%emt 0:03:22]} 34. c5 {[%emt 0:00:38]} Bc7 {[%emt 0:03:02]} 35. Rf1 {[%emt 0:06:16]} Ba5 {[%emt 0:04:59]} 36. f5 {[%emt 0:01:14]} Rxe5 {[%emt 0:02:45]} 37. dxe5 {[%emt 0:00:22]} Bc7 {[%emt 0:00:10]} 38. f6+ {[%emt 0:05:37]} Rxf6 {[%emt 0:02:12]} 39. Rxf6 {[%emt 0:01:45]} Bxe5+ {[%emt 0:00:04]} 40. Kf2 {[%emt 0:01:12]} Kxf6 {[%emt 0:01:51]} 41. Ra3 {[%emt 0:01:44]} Bd4+ {[%emt 0:01:21]} 42. Ke2 {[%emt 0:01:56]} Ke5 {[%emt 0:00:28]} 43. bxc6 {[%emt 0:00:35]} bxc6 {[%emt 0:00:06]} 44. Rg3 {[%emt 0:01:29]} Bxc5 {[%emt 0:03:11]} 45. g5 {[%emt 0:01:15]} hxg5 {[%emt 0:00:12]} 46. Rxg5+ {[%emt 0:00:08]} Kf4 {[%emt 0:00:12]} 47. Rg8 {[%emt 0:00:43]} d4 {[%emt 0:00:18]} 48. Rb8 {[%emt 0:02:12]} a5 {[%emt 0:01:39]} 49. Kd1 {[%emt 0:07:05]} d3 {[%emt 0:00:24]} 50. Rg8 {[%emt 0:09:51]} Bb4 {[%emt 0:00:19]} 0-1

[Event "34rd NATO Championship 2024"]
[Site "Rhodes"]
[Date "2024.10.21"]
[Round "1.41"]
[White "Cheung, Jan"]
[Black "Woolf, Ben"]
[Result "1-0"]
[ECO "A90"]
[WhiteElo "2010"]
[BlackElo "1747"]
[Annotator "RC"]
[PlyCount "51"]
[EventDate "2024.09.18"]
[EventType "swiss"]
[EventCountry "GRE"]
[SourceTitle "playchess.com"]
[Source "ChessBase"]
[SourceQuality "1"]
[TimeControl "5400+30"]

1. d4 {[%emt 0:00:33]} e6 {[%emt 0:00:17]} 2. c4 {[%emt 0:08:18]} f5 {[%emt 0:00:09]} 3. g3 {[%emt 0:00:05]} Nf6 {[%emt 0:00:18]} 4. Bg2 {[%emt 0:00:12]} Bb4+ {[%emt 0:00:53]} 5. Bd2 {[%emt 0:00:08]} Bxd2+ {[%emt 0:00:08]} 6. Qxd2 {[%emt 0:00:39]} O-O {[%emt 0:00:34]} 7. Nc3 {[%emt 0:01:06]} d6 {[%emt 0:01:14]} 8. Nf3 {[%emt 0:00:19]} Nbd7 {[%emt 0:01:54]} 9. O-O {[%emt 0:03:42]} e5 {[%emt 0:02:37]} 10. dxe5 {[%emt 0:05:20]} dxe5 {[%emt 0:00:50]} 11. Rad1 {[%emt 0:01:40]} Qe7 {[%emt 0:02:04]} 12. Nd5 {[%emt 0:05:36]} Nxd5 {[%emt 0:01:44]} 13. cxd5 {[%emt 0:00:15]} Nf6 {[%emt 0:04:24]} 14. Qc3 {[%emt 0:07:45]} e4 {[%emt 0:05:30]} 15. Ne1 {[%emt 0:08:30]} Rd8 {[%emt 0:03:57]} 16. Qb3 {[%emt 0:06:00]} Rd6 {[%emt 0:06:02]} 17. Nc2 {[%emt 0:01:18]} Qf7 {[%emt 0:05:56]} 18. Ne3 {[%emt 0:02:47]} g6 {[%emt 0:06:56]} 19. f3 {[%emt 0:01:34]} Qd7 {[%emt 0:09:21]} 20. Nc4 {[%emt 0:11:43]} Rxd5 {[%emt 0:06:43]} 21. Ne3 {[%emt 0:01:15]} c6 {[%emt 0:01:09]} 22. fxe4 {[%emt 0:01:17]} Nxe4 {[%emt 0:00:34]} 23. Bxe4 {[%emt 0:03:27]} fxe4 {[%emt 0:00:07]} 24. Nxd5 {[%emt 0:00:44]} cxd5 {[%emt 0:01:49]} 25. Rxd5 {[%emt 0:00:19]} Qe6 {[%emt 0:00:23]} 26. Rd8+ {[%emt 0:00:28]} 1-0

[Event "34rd NATO Championship 2024"]
[Site "Rhodes"]
[Date "2024.10.21"]
[Round "1.42"]
[White "Huidiu, Vasile-Cristian"]
[Black "Tocco, Paolo"]
[Result "0-1"]
[ECO "A96"]
[WhiteElo "1729"]
[BlackElo "2010"]
[Annotator "RC"]
[PlyCount "96"]
[EventDate "2024.09.18"]
[EventType "swiss"]
[EventCountry "GRE"]
[SourceTitle "playchess.com"]
[Source "ChessBase"]
[SourceQuality "1"]
[TimeControl "5400+30"]

1. d4 {[%emt 0:01:10]} e6 {[%emt 0:00:28]} 2. c4 {[%emt 0:00:30]} f5 {[%emt 0:00:06]} 3. Nf3 {[%emt 0:00:44]} Nf6 {[%emt 0:00:07]} 4. g3 {[%emt 0:02:02]} Be7 {[%emt 0:00:07]} 5. Bg2 {[%emt 0:01:06]} O-O {[%emt 0:00:08]} 6. O-O {[%emt 1:27:58]} d6 {[%emt 1:32:34]} 7. Nc3 {[%emt 0:00:00]} Ne4 {[%emt 0:00:00]} 8. Qc2 {[%emt 0:00:00]} Nxc3 {[%emt 0:00:00]} 9. bxc3 {[%emt 0:00:00]} Nc6 {[%emt 0:00:00]} 10. e4 {[%emt 0:00:00]} e5 {[%emt 0:00:00]} 11. a4 {[%emt 0:00:00]} Qe8 {[%emt 0:00:00]} 12. a5 {[%emt 0:00:00]} Qh5 {[%emt 0:00:00]} 13. a6 {[%emt 0:00:00]} b6 {[%emt 0:00:00]} 14. exf5 {[%emt 0:00:00]} Bxf5 {[%emt 0:00:00]} 15. Qa4 {[%emt 0:00:00]} Bd7 {[%emt 0:00:00]} 16. Nd2 {[%emt 0:00:00]} Qe8 {[%emt 0:00:00]} 17. Qb5 {[%emt 0:00:00]} Kh8 {[%emt 0:00:00]} 18. Qd5 {[%emt 0:00:00]} Rd8 {[%emt 0:00:00]} 19. Nb3 {[%emt 0:00:00]} exd4 {[%emt 0:00:00]} 20. Nxd4 {[%emt 0:00:00]} Ne5 {[%emt 0:00:00]} 21. Qe4 {[%emt 0:00:00]} c5 {[%emt 0:00:00]} 22. Ne2 {[%emt 0:00:00]} Bf5 {[%emt 0:00:00]} 23. Qd5 {[%emt 0:00:00]} Bd3 {[%emt 0:00:00]} 24. Re1 {[%emt 0:00:00]} Bxc4 {[%emt 0:00:00]} 25. Qe4 {[%emt 0:00:00]} Bf6 {[%emt 0:00:00]} 26. Nf4 {[%emt 0:01:15]} d5 {[%emt 0:00:00]} 27. Qe3 {[%emt 0:01:29]} Qf7 {[%emt 0:00:00]} 28. Ba3 {[%emt 0:02:07]} Rfe8 {[%emt 0:00:00]} 29. Qd2 {[%emt 0:00:35]} d4 {[%emt 0:00:00]} 30. Bb2 {[%emt 0:01:19]} dxc3 {[%emt 0:00:00]} 31. Qxc3 {[%emt 0:01:17]} Nd3 {[%emt 0:00:00]} 32. Rxe8+ {[%emt 0:00:35]} Rxe8 {[%emt 0:00:00]} 33. Qc2 {[%emt 0:03:50]} Bxb2 {[%emt 0:00:00]} 34. Rd1 {[%emt 0:00:27]} Nxf4 {[%emt 0:00:00]} 35. gxf4 {[%emt 0:00:37]} Bd4 {[%emt 0:00:00]} 36. Qd2 {[%emt 0:00:38]} Re2 {[%emt 0:00:00]} 37. Qc1 {[%emt 0:00:34]} Bxf2+ {[%emt 0:00:00]} 38. Kh1 {[%emt 0:00:35]} Bd4 {[%emt 0:00:00]} 39. Re1 {[%emt 0:00:38]} Qe6 {[%emt 0:00:00]} 40. Rxe2 {[%emt 0:00:30]} Qxe2 {[%emt 0:00:00]} 41. f5 {[%emt 0:00:33]} Bxa6 {[%emt 0:00:00]} 42. h3 {[%emt 0:00:21]} Qe3 {[%emt 0:00:00]} 43. Qd1 {[%emt 0:00:30]} Be2 {[%emt 0:00:00]} 44. Qb1 {[%emt 0:00:39]} Bd3 {[%emt 0:00:00]} 45. Qd1 {[%emt 0:00:13]} Bxf5 {[%emt 0:00:00]} 46. Qf1 {[%emt 0:00:12]} Qf2 {[%emt 0:00:00]} 47. Qd1 {[%emt 0:00:28]} Bc2 {[%emt 0:00:00]} 48. Qc1 {[%emt 0:00:55]} b5 {[%emt 0:00:00]} 0-1

[Event "34rd NATO Championship 2024"]
[Site "Rhodes"]
[Date "2024.10.21"]
[Round "1.43"]
[White "Pirs, Matjaz"]
[Black "Chapman, Chas"]
[Result "1-0"]
[ECO "A39"]
[WhiteElo "2203"]
[BlackElo "1696"]
[Annotator "RC"]
[PlyCount "113"]
[EventDate "2024.09.18"]
[EventType "swiss"]
[EventCountry "GRE"]
[SourceTitle "playchess.com"]
[Source "ChessBase"]
[SourceQuality "1"]
[TimeControl "5400+30"]

1. Nf3 {[%emt 0:00:04]} c5 {[%emt 0:01:05]} 2. c4 {[%emt 0:00:13]} d6 {[%emt 0:00:46]} 3. Nc3 {[%emt 1:31:43]} g6 {[%emt 0:01:05]} 4. g3 {[%emt 0:00:00]} Bg7 {[%emt 0:01:18]} 5. Bg2 {[%emt 0:00:00]} Nf6 {[%emt 0:02:11]} 6. O-O {[%emt 0:00:00]} Nc6 {[%emt 0:01:35]} 7. b3 {[%emt 0:00:00]} a6 {[%emt 0:02:57]} 8. Bb2 {[%emt 0:00:00]} O-O {[%emt 0:00:34]} 9. d4 {[%emt 0:00:00]} Nxd4 {[%emt 0:08:02]} 10. Nxd4 {[%emt 0:00:00]} cxd4 {[%emt 0:00:05]} 11. Qxd4 {[%emt 0:00:00]} e5 {[%emt 0:15:29]} 12. Qd3 {[%emt 0:00:00]} Qc7 {[%emt 0:02:28]} 13. Rad1 {[%emt 0:00:00]} Rd8 {[%emt 0:01:23]} 14. Rd2 {[%emt 0:05:30]} Rb8 {[%emt 0:03:22]} 15. Ba3 {[%emt 0:00:00]} Bf8 {[%emt 0:01:56]} 16. Rfd1 {[%emt 0:00:00]} Bf5 {[%emt 0:04:58]} 17. e4 {[%emt 0:00:00]} Be6 {[%emt 0:09:02]} 18. h3 {[%emt 0:00:00]} Be7 {[%emt 0:07:29]} 19. Qe2 {[%emt 0:00:00]} b6 {[%emt 0:05:50]} 20. Rc1 {[%emt 0:03:00]} Bc8 {[%emt 0:04:48]} 21. Bf1 {[%emt 0:00:00]} Bb7 {[%emt 0:01:39]} 22. Kh2 {[%emt 0:00:00]} Bc6 {[%emt 0:08:31]} 23. f3 {[%emt 0:00:00]} Qd7 {[%emt 0:00:30]} 24. Qf2 {[%emt 0:00:00]} Qb7 {[%emt 0:02:16]} 25. Rcd1 {[%emt 0:00:00]} Qc7 {[%emt 0:00:44]} 26. Rc2 {[%emt 0:00:00]} Qb7 {[%emt 0:00:41]} 27. h4 {[%emt 0:00:00]} Kg7 {[%emt 0:00:15]} 28. Rdc1 {[%emt 0:00:00]} Rbc8 {[%emt 0:00:32]} 29. b4 {[%emt 0:00:00]} Bd7 {[%emt 0:01:21]} 30. Rd2 {[%emt 0:00:00]} Be6 {[%emt 0:00:16]} 31. Nd1 {[%emt 0:00:00]} Rd7 {[%emt 0:00:43]} 32. Ne3 {[%emt 0:00:00]} Rcd8 {[%emt 0:00:51]} 33. Nd5 {[%emt 0:00:00]} Bxd5 {[%emt 0:01:06]} 34. cxd5 {[%emt 0:00:00]} b5 {[%emt 0:01:28]} 35. Rdc2 {[%emt 0:00:00]} Ne8 {[%emt 0:00:02]} 36. Bh3 {[%emt 0:01:05]} Rc7 {[%emt 0:00:12]} 37. Rc6 {[%emt 0:01:14]} Ra8 {[%emt 0:01:31]} 38. Qd2 {[%emt 0:01:17]} Bd8 {[%emt 0:01:36]} 39. Bb2 {[%emt 0:00:34]} f6 {[%emt 0:00:58]} 40. R1c2 {[%emt 0:00:19]} Rxc6 {[%emt 0:00:30]} 41. Rxc6 {[%emt 0:00:30]} Ra7 {[%emt 0:03:07]} 42. Bc1 {[%emt 0:00:00]} Kf8 {[%emt 0:02:01]} 43. Qc2 {[%emt 0:00:21]} Ra8 {[%emt 0:00:19]} 44. Be6 {[%emt 0:00:38]} Nc7 {[%emt 0:00:50]} 45. Bh6+ {[%emt 0:00:44]} Ke7 {[%emt 0:00:27]} 46. Bg4 {[%emt 0:02:41]} Kf7 {[%emt 0:00:33]} 47. Be3 {[%emt 0:00:09]} a5 {[%emt 0:00:37]} 48. bxa5 {[%emt 0:01:06]} Ne8 {[%emt 0:01:42]} 49. Bc8 {[%emt 0:01:09]} Qe7 {[%emt 0:01:04]} 50. a6 {[%emt 0:00:07]} Nc7 {[%emt 0:00:33]} 51. Bb7 {[%emt 0:00:11]} Nxa6 {[%emt 0:00:30]} 52. Bxa6 {[%emt 0:00:49]} Ra7 {[%emt 0:01:00]} 53. Bxa7 {[%emt 0:00:12]} Qxa7 {[%emt 0:00:08]} 54. Bxb5 {[%emt 0:00:34]} Bb6 {[%emt 0:00:29]} 55. Rxd6 {[%emt 0:00:24]} Bg1+ {[%emt 0:01:11]} 56. Kg2 {[%emt 0:00:15]} Kg7 {[%emt 0:00:46]} 57. Rd7+ {[%emt 0:00:08]} 1-0

[Event "34rd NATO Championship 2024"]
[Site "Rhodes"]
[Date "2024.10.21"]
[Round "1.44"]
[White "Abbate, Giovanni"]
[Black "Pazeriene, Diana"]
[Result "0-1"]
[ECO "B10"]
[WhiteElo "1695"]
[BlackElo "1993"]
[Annotator "RC"]
[PlyCount "114"]
[EventDate "2024.09.18"]
[EventType "swiss"]
[EventCountry "GRE"]
[SourceTitle "playchess.com"]
[Source "ChessBase"]
[SourceQuality "1"]
[TimeControl "5400+30"]

1. e4 {[%emt 0:00:08]} c6 {[%emt 0:00:07]} 2. Nf3 {[%emt 0:00:34]} d5 {[%emt 0:00:17]} 3. exd5 {[%emt 0:00:30]} cxd5 {[%emt 0:00:08]} 4. Ne5 {[%emt 0:00:25]} Nf6 {[%emt 0:02:36]} 5. d4 {[%emt 0:00:27]} Nc6 {[%emt 0:07:40]} 6. c3 {[%emt 0:00:39]} e6 {[%emt 0:03:30]} 7. Bd3 {[%emt 0:00:39]} Nxe5 {[%emt 0:02:53]} 8. dxe5 {[%emt 0:00:19]} Nd7 {[%emt 0:00:03]} 9. f4 {[%emt 0:00:36]} Bc5 {[%emt 0:04:14]} 10. Qe2 {[%emt 0:00:44]} a5 {[%emt 0:03:32]} 11. Be3 {[%emt 0:01:27]} Qb6 {[%emt 0:03:58]} 12. Bxc5 {[%emt 0:00:13]} Nxc5 {[%emt 0:00:21]} 13. Bb5+ {[%emt 0:10:32]} Bd7 {[%emt 1:07:41]} 14. Bxd7+ {[%emt 0:02:31]} Kxd7 {[%emt 0:00:00]} 15. Na3 {[%emt 0:02:05]} Rac8 {[%emt 0:00:00]} 16. Qb5+ {[%emt 0:00:29]} Qxb5 {[%emt 0:00:00]} 17. Nxb5 {[%emt 0:00:05]} Nd3+ {[%emt 0:00:00]} 18. Kf1 {[%emt 0:08:12]} Nxb2 {[%emt 0:00:00]} 19. Rb1 {[%emt 0:07:17]} Nc4 {[%emt 0:00:00]} 20. Ke2 {[%emt 0:01:06]} b6 {[%emt 0:00:00]} 21. a4 {[%emt 0:01:57]} f6 {[%emt 0:00:00]} 22. exf6 gxf6 {[%emt 0:00:00]} 23. Kd3 {[%emt 0:04:06]} Rc5 {[%emt 0:00:00]} 24. Rhf1 {[%emt 0:03:18]} Rg8 {[%emt 0:00:00]} 25. g3 {[%emt 0:00:21]} Rgc8 {[%emt 0:00:00]} 26. Rf2 {[%emt 0:02:43]} Na3 {[%emt 0:00:00]} 27. Nxa3 {[%emt 0:07:33]} Rxc3+ {[%emt 0:00:00]} 28. Ke2 {[%emt 0:01:00]} Rxa3 {[%emt 0:00:00]} 29. Rxb6 {[%emt 0:00:19]} Rxa4 {[%emt 0:00:00]} 30. Kf3 {[%emt 0:00:41]} h5 {[%emt 0:00:00]} 31. Rb7+ {[%emt 0:00:19]} Rc7 {[%emt 0:00:00]} 32. Rb8 {[%emt 0:00:16]} Rc3+ {[%emt 0:00:00]} 33. Kg2 {[%emt 0:00:09]} Rb4 {[%emt 0:00:00]} 34. Ra8 {[%emt 0:03:01]} Ra4 {[%emt 0:00:00]} 35. Rb2 {[%emt 0:00:29]} h4 {[%emt 0:00:00]} 36. Ra7+ {[%emt 0:01:31]} Rc7 {[%emt 0:00:00]} 37. Ra6 {[%emt 0:00:34]} hxg3 {[%emt 0:00:00]} 38. hxg3 {[%emt 0:00:13]} Rc6 {[%emt 0:00:00]} 39. Rb7+ {[%emt 0:00:54]} Kd6 {[%emt 0:00:00]} 40. Raa7 {[%emt 0:00:17]} Kc5 {[%emt 0:00:00]} 41. Rb2 {[%emt 0:04:29]} d4 {[%emt 0:00:00]} 42. Rc2+ {[%emt 0:01:03]} Kd5 {[%emt 0:00:00]} 43. Rd7+ {[%emt 0:00:31]} Rd6 {[%emt 0:00:00]} 44. Rdc7 {[%emt 0:00:32]} d3 {[%emt 0:00:00]} 45. Rd2 {[%emt 0:03:06]} Kd4 {[%emt 0:00:00]} 46. Kf3 {[%emt 0:00:29]} Rc4 {[%emt 0:00:00]} 47. Rb7 {[%emt 0:00:42]} Kc3 {[%emt 0:00:00]} 48. Rbb2 {[%emt 0:00:27]} f5 {[%emt 0:00:00]} 49. Ra2 {[%emt 0:00:34]} a4 {[%emt 0:00:00]} 50. Ke3 {[%emt 0:00:15]} Re4+ {[%emt 0:00:00]} 51. Kf3 {[%emt 0:00:08]} a3 {[%emt 0:00:00]} 52. g4 {[%emt 0:00:11]} Rdd4 {[%emt 0:00:00]} 53. gxf5 {[%emt 0:00:46]} Rxf4+ {[%emt 0:00:00]} 54. Kg3 {[%emt 0:00:38]} Rxf5 {[%emt 0:00:00]} 55. Rd1 {[%emt 0:00:47]} Kb3 {[%emt 0:00:00]} 56. Rda1 {[%emt 0:00:25]} Ra5 {[%emt 0:00:00]} 57. Kf3 {[%emt 0:00:18]} d2 {[%emt 0:00:00]} 0-1

[Event "34rd NATO Championship 2024"]
[Site "Rhodes"]
[Date "2024.10.21"]
[Round "1.45"]
[White "Koops, Janis"]
[Black "Boudry, Rik"]
[Result "1-0"]
[ECO "A22"]
[WhiteElo "1990"]
[BlackElo "1671"]
[Annotator "RC"]
[PlyCount "39"]
[EventDate "2024.09.18"]
[EventType "swiss"]
[EventCountry "GRE"]
[SourceTitle "playchess.com"]
[Source "ChessBase"]
[SourceQuality "1"]
[TimeControl "5400+30"]

1. c4 {[%emt 0:00:04]} Nf6 {[%emt 0:00:32]} 2. Nc3 {[%emt 0:00:09]} c6 {[%emt 0:00:24]} 3. e4 {[%emt 0:00:38]} e5 {[%emt 0:01:59]} 4. Nf3 {[%emt 0:00:58]} Bb4 {[%emt 0:03:23]} 5. d3 {[%emt 0:02:41]} d6 {[%emt 0:01:42]} 6. Be2 {[%emt 0:01:36]} O-O {[%emt 0:03:38]} 7. O-O {[%emt 0:00:17]} h6 {[%emt 0:04:36]} 8. Rb1 {[%emt 0:02:54]} Bxc3 {[%emt 0:05:52]} 9. bxc3 {[%emt 1:25:43]} c5 {[%emt 0:01:08]} 10. Ne1 {[%emt 0:00:00]} b6 {[%emt 0:01:28]} 11. f4 {[%emt 0:00:00]} Nbd7 {[%emt 1:11:18]} 12. f5 {[%emt 0:00:00]} Nh7 {[%emt 0:00:00]} 13. Rf3 {[%emt 0:00:00]} Ndf6 {[%emt 0:00:00]} 14. g4 {[%emt 0:00:00]} Nxg4 {[%emt 0:00:00]} 15. Rg3 {[%emt 0:00:00]} h5 {[%emt 0:00:00]} 16. Bxg4 {[%emt 0:00:00]} hxg4 {[%emt 0:00:00]} 17. Qxg4 {[%emt 0:00:00]} Qf6 {[%emt 0:00:00]} 18. Qh5 {[%emt 0:00:00]} g6 {[%emt 0:00:00]} 19. fxg6 {[%emt 0:00:00]} fxg6 {[%emt 0:00:00]} 20. Rxg6+ {[%emt 0:05:30]} 1-0